Cogmind - Beta 13 X1 @@@ ROGUE MODE // 2023.08.21 @ 08:42:55 Player: VR-DUX Result: Destroyed by as-66432 with Assembled Heavy Rifle Performance ------------- Evolutions (0) 0 Regions Visited (4) 800 Robots Destroyed (25) 125 Value Destroyed (382) 382 Prototype IDs (23) 460 Alien Tech Used (0) 0 Bonus (300) 300 TOTAL SCORE: 2067 Bonus ------- Aligned with FarCom 300 Cogmind --------- Core Integrity 0/250 Matter 230/300 Energy 85/100 System Corruption 1% Temperature Cool (0) Movement Treading (160) Location -9/Mines Parts ------- > --- POWER (1) -------- (None) > --- PROPULSION (2) --- Light Treads > --- UTILITY (2) ------ Large Storage Unit > --- WEAPON (2) ------- (None) > --- INVENTORY (15) --- Ion Engine Light Treads Light Treads Light Treads Medium Storage Unit Huge Storage Unit Medium Matter Pod (100) Heavy EM Pulse Gun Particle Gun Beam Cannon Guided Plasma Cannon Assault Rifle Mining Laser Peak State ------------ > --- POWER ------------ Ion Engine > --- PROPULSION ------- Light Treads Light Treads > --- UTILITY ---------- Large Storage Unit Structural Scanner > --- WEAPON ----------- Heavy EM Pulse Gun Assault Rifle > --- INVENTORY -------- Ion Engine Light Treads Light Treads Light Treads Medium Storage Unit Huge Storage Unit Medium Matter Pod Particle Gun Beam Cannon Guided Plasma Cannon Assault Rifle Grenade Launcher Grenade Launcher Grenade Launcher Mining Laser [Rating: 10] Favorites ----------- Power Ion Engine Engine Ion Engine Propulsion Light Treads Treads Light Treads Leg Aluminum Leg Utility Large Storage Unit Device Structural Scanner Storage Large Storage Unit Processor Signal Interpreter Weapon Grenade Launcher Energy Gun Medium Laser Ballistic Gun Assault Rifle Launcher Grenade Launcher Special Weapon Mining Laser Build | -11 -10 -10 -10 -9 ------- Run | Jun Mat Min Exi Min Slots Evolved . | . . . . . Power . | . . . . . Propulsion . | . . . . . Utility . | . . . . . Weapon . | . . . . . Parts Attached 30 | . 23 3 . 4 Power 1 | . 1 . . . Engine 1 | . 1 . . . Core . | . . . . . Reactor . | . . . . . Propulsion 3 | . 3 . . . Treads 3 | . 3 . . . Leg . | . . . . . Wheel . | . . . . . Hover . | . . . . . Flight . | . . . . . Utility 5 | . 5 . . . Device 2 | . 2 . . . Storage 2 | . 2 . . . Processor 1 | . 1 . . . Hackware . | . . . . . Protection . | . . . . . Artifact . | . . . . . Weapon 21 | . 14 3 . 4 Energy Gun 9 | . 8 . . 1 Energy Cannon . | . . . . . Ballistic Gun 1 | . 1 . . . Ballistic Cannon . | . . . . . Launcher 8 | . 2 3 . 3 Special Weapon 3 | . 3 . . . Impact Weapon . | . . . . . Slashing Weapon . | . . . . . Piercing Weapon . | . . . . . Special Melee Weapon . | . . . . . Unidentified Prototypes . | . . . . . Parts Lost 7 | . . . . 7 Power 1 | . . . . 1 Propulsion 1 | . . . . 1 Utility 1 | . . . . 1 Weapon 4 | . . . . 4 Highest Loss Streak 7 | . . . . 7 To Critical Strikes . | . . . . . Average Slot Usage (%) 98 | . 98 100 100 80 Engine 13 | . 14 14 14 9 Treads 26 | . 25 28 28 28 Leg 1 | . 1 . . . Device 11 | . 9 14 14 9 Storage 14 | . 14 14 14 14 Processor 2 | . 3 . . . Energy Gun 11 | . 20 . . 9 Ballistic Gun 6 | . . 14 14 9 Launcher 7 | . 3 14 14 . Special Weapon 1 | . 3 . . . Naked Turns . | . . . . . Heaviest Build 31 | 13 31 31 31 27 Greatest Support 40 | 20 40 40 40 40 Greatest Overweight (x) . | . . . . . Average Overweight (x) . | . . . . . Largest Inventory Capacity 15 | . 15 15 15 15 Average Capacity 14 | . 14 15 15 15 Most Carried 15 | . 15 15 15 15 Average Carried 12 | . 11 14 14 14 Final Capacity 15 | 8 15 15 15 15 Final Carried 15 | 6 15 15 15 13 Class Distribution -------------------- 100% | Mutant Dominant Class ---------------- Mutant | -10/Materials Mutant | -10/Mines Mutant | -10/Exiles Mutant | -9/Mines Resources | -11 -10 -10 -10 -9 ----------- Run | Jun Mat Min Exi Min Matter Collected 700 | 168 399 133 . . Remotely . | . . . . . Salvage Created 655 | . 513 46 . 96 Parts 52 | . 44 4 . 4 Haulers Intercepted 2 | . 2 . . . Recyclers Shooed 2 | . 2 . . . Parts Field Recycled . | . . . . . Retrieved Matter . | . . . . . Parts Self-Destructed . | . . . . . Prevented . | . . . . . Kills | -11 -10 -10 -10 -9 ------- Run | Jun Mat Min Exi Min Combat Hostiles Destroyed 24 | . 11 3 . 10 Guns 11 | . 5 3 . 3 AOE 13 | . 6 . . 7 Classes Destroyed 9 | . 8 . . 1 Worker 1 | . 1 . . . Builder 3 | . 3 . . . Tunneler 1 | . 1 . . . Hauler 2 | . 2 . . . Recycler 1 | . 1 . . . Watcher 2 | . 2 . . . Swarmer 9 | . 6 3 . . Grunt 6 | . 5 . . 1 Assembled 9 | . . . . 9 Best Kill Streak 10 | . 8 3 . 10 Combat Bots Only 10 | . 6 3 . 10 Max Kills in Single Turn 3 | . 2 1 . 3 Gunslinging . | . . . . . Exploded 3 | . 2 . . 3 Melee . | . . . . . Uniques/NPCs Destroyed . | . . . . . Combat | -11 -10 -10 -10 -9 -------- Run | Jun Mat Min Exi Min Damage Taken 1185 | . 284 81 . 820 Core 252 | . 58 19 . 175 Absorbed by Shields . | . . . . . Regen/Repaired (Parts) 48 | . 48 . . . Core Remaining (%) 100 | 100 . . . . Volleys Fired 74 | . 53 11 . 10 Largest 2 | . 2 1 . 2 Hottest 100 | . 100 20 . 65 Shots Fired 103 | . 77 11 . 15 Gun 83 | . 62 11 . 10 Cannon . | . . . . . Launcher 13 | . 8 . . 5 Special 7 | . 7 . . . Kinetic 21 | . 5 11 . 5 Thermal 51 | . 51 . . . Explosive 13 | . 8 . . 5 Electromagnetic 18 | . 13 . . 5 Robot Hit Streak 5 | . 4 5 . 4 Robot Miss Streak 4 | . 4 1 . 2 Penetration Max . | . . . . . Secondary Targets 1 | . 1 . . . Max Gunslinging Chain 1 | . 1 . . . Shots Hit Robots 51 | . 32 8 . 11 Core Hits 58 | . 27 3 . 28 Critical Kills . | . . . . . Critical Parts Destroyed . | . . . . . Critical Strikes . | . . . . . Melee Attacks . | . . . . . Impact . | . . . . . Slashing . | . . . . . Piercing . | . . . . . Sneak Attacks . | . . . . . Combat Hostiles . | . . . . . Follow-up Attacks . | . . . . . Damage Inflicted 1660 | . 932 106 . 622 Guns 626 | . 431 106 . 89 Cannons . | . . . . . Explosions 1034 | . 501 . . 533 Melee . | . . . . . Ramming . | . . . . . Kinetic 175 | . 34 106 . 35 Thermal 310 | . 310 . . . Explosive 1010 | . 477 . . 533 Electromagnetic 165 | . 111 . . 54 Impact . | . . . . . Slashing . | . . . . . Piercing . | . . . . . Highest Corruption 1 | . 1 1 1 1 Average Corruption 1 | . 1 1 1 1 Corruption Purged . | . . . . . Corruption Blocked . | . . . . . Effects 8 | . 3 3 2 . Message Errors 2 | . . 1 1 . Matter Fused 2 | . 1 1 . . Energy Discharges 3 | . 1 1 1 . Data Loss (major) 1 | . 1 . . . Overload Shots . | . . . . . Overflow Damage 87 | . 36 . . 51 Projectiles . | . . . . . Explosions 87 | . 36 . . 51 Melee . | . . . . . Knockbacks . | . . . . . Impact . | . . . . . Kinetic . | . . . . . Secondary . | . . . . . Self-Inflicted Damage 186 | . 22 . . 164 Shots 7 | . 2 . . 5 Rammed . | . . . . . Targets Rammed . | . . . . . Kicked . | . . . . . Crushed . | . . . . . Highest Temperature 255 | . 255 . . 115 Average Temperature 77 | . 82 . . 49 Received Heat Transfer 239 | . 99 . . 140 Siege Activations . | . . . . . Robots Corrupted . | . . . . . Combat Hostiles . | . . . . . Parts Fried . | . . . . . Impact Corruptions . | . . . . . Robots Melted . | . . . . . Combat Hostiles . | . . . . . Parts Melted 1 | . 1 . . . Heat Transferred 783 | . 783 . . . Parts Sabotaged . | . . . . . Parts Stolen . | . . . . . Parts Stripped . | . . . . . Power Chain Reactions 1 | . 1 . . . Missiles Intercepted . | . . . . . Alert | -11 -10 -10 -10 -9 ------- Run | Jun Mat Min Exi Min Peak Influence 234 | . 234 119 . 30 Initial 49 | . . 49 . . Average 85 | . 104 47 . 16 Maximum Alert Level 1 | . 1 . . . Low Security (%) 84 | . 76 100 . 100 Level 1 15 | . 23 . . . Level 2 . | . . . . . Level 3 . | . . . . . Level 4 . | . . . . . Level 5 . | . . . . . High Security . | . . . . . Max Security . | . . . . . Squads Dispatched 2 | . 2 . . . Investigation 2 | . 2 . . . Extermination . | . . . . . Reinforcement . | . . . . . Assault . | . . . . . Garrison . | . . . . . Intercept . | . . . . . Searches Triggered . | . . . . . Construction Impeded . | . . . . . Haulers Reinforced . | . . . . . Active Scanning Responses . | . . . . . Cargo Convoy Interrupts . | . . . . . Stealth | -11 -10 -10 -10 -9 --------- Run | Jun Mat Min Exi Min Distress Signals . | . . . . . Communications Jammed . | . . . . . Distress Signals . | . . . . . Times Spotted 41 | . 17 3 . 21 Peak Tracking Total 14 | . 3 3 . 14 Tactical Retreats 1 | . 1 . . . Traps | -11 -10 -10 -10 -9 ------- Run | Jun Mat Min Exi Min Traps Triggered 5 | . 5 . . . Indirectly . | . . . . . Trap Hack Attempts . | . . . . . Triggered . | . . . . . Disarmed . | . . . . . Reprogrammed . | . . . . . Reused . | . . . . . Traps Extracted . | . . . . . Installed . | . . . . . Triggered . | . . . . . Machines | -11 -10 -10 -10 -9 ---------- Run | Jun Mat Min Exi Min Machines Disabled 2 | . 2 . . . Max in Single Turn 1 | . 1 . . . Machines Repaired . | . . . . . Machines Sabotaged . | . . . . . Overloaded Fab Kills . | . . . . . Hacking | -11 -10 -10 -10 -9 --------- Run | Jun Mat Min Exi Min Machines Accessed 7 | . 5 . 2 . Terminals 2 | . 2 . . . Fabricators . | . . . . . Repair Stations 1 | . 1 . . . Recycling Units 2 | . 2 . . . Scanalyzers . | . . . . . Garrison Access . | . . . . . Total Hacks 14 | . 12 . 2 . Successful 9 | . 7 . 2 . Failed 5 | . 5 . . . Catastrophic 1 | . 1 . . . Database Lockouts . | . . . . . Manual 6 | . 5 . 1 . Terminals 6 | . 6 . . . Fabricators . | . . . . . Repair Stations 2 | . 2 . . . Recycling Units 4 | . 4 . . . Scanalyzers . | . . . . . Garrison Access . | . . . . . Terminal Hacks 4 | . 2 . 2 . Record 1 | . . . 1 . Robot Analysis 2 | . 2 . . . Derelict Proto ID Bank 1 | . . . 1 . Fabricator Hacks . | . . . . . Repair Station Hacks 2 | . 2 . . . Scan Component 1 | . 1 . . . Repair 1 | . 1 . . . Recycling Unit Hacks 3 | . 3 . . . Retrieve Components 3 | . 3 . . . Scanalyzer . | . . . . . Garrison Access Hacks . | . . . . . Unauthorized Hacks . | . . . . . Terminals . | . . . . . Fabricators . | . . . . . Repair Stations . | . . . . . Recycling Units . | . . . . . Scanalyzers . | . . . . . Garrison Access . | . . . . . Data Cores Recovered . | . . . . . Used . | . . . . . Hacking Detections 4 | . 4 . . . Full Trace Events . | . . . . . Feedback Events . | . . . . . Feedback Blocked . | . . . . . Robot Schematics Acquired . | . . . . . Robots Built . | . . . . . Authchips . | . . . . . Time . | . . . . . Total Robot Build Rating . | . . . . . Part Schematics Acquired . | . . . . . Parts Built . | . . . . . Authchips . | . . . . . Time . | . . . . . Total Part Build Rating . | . . . . . Parts Repaired 1 | . 1 . . . Time 26 | . 26 . . . Parts Recycled . | . . . . . Recycled Matter . | . . . . . Retrieved Matter . | . . . . . Retrieved Components 10 | . 10 . . . Parts Scanalyzed . | . . . . . Part Schematics Acquired . | . . . . . Parts Damaged . | . . . . . Bothacking | -11 -10 -10 -10 -9 ------------ Run | Jun Mat Min Exi Min Used RIF Installer . | . . . . . Robots Hacked . | . . . . . Non-combat . | . . . . . Combat . | . . . . . Robot Hacks Applied . | . . . . . Relay Couplers Released . | . . . . . Fabnet Peak Effective % . | . . . . . Robots Rewired . | . . . . . Allies Hacked . | . . . . . Hacks Repelled . | . . . . . Allies | -11 -10 -10 -10 -9 -------- Run | Jun Mat Min Exi Min Total Allies 1 | . . 1 . . Largest Group 1 | . . 1 1 . Highest-Rated Group 31 | . . 31 31 . Highest-Rated Ally 31 | . . 31 31 . Total Orders . | . . . . . Ally Attacks . | . . . . . Total Damage . | . . . . . Kills . | . . . . . Allies Corrupted . | . . . . . Allies Melted . | . . . . . Intel | -11 -10 -10 -10 -9 ------- Run | Jun Mat Min Exi Min Robot Analysis Total 2 | . 2 . . . Derelict Logs Recovered 1 | . . 1 . . Drone Launches . | . . . . . Drone Recoveries . | . . . . . Exploration | -11 -10 -10 -10 -9 ------------- Run | Jun Mat Min Exi Min Turns Passed 2275 | . 1298 588 359 30 Spaces Moved 1221 | 1 677 318 224 1 Core . | . . . . . Treads 1176 | . 633 318 224 1 Legs 45 | 1 44 . . . Wheels . | . . . . . Hover . | . . . . . Flight . | . . . . . Fastest Speed 120 | 120 120 160 160 160 Average Speed 158 | 120 157 160 160 160 Slowest Speed 160 | 120 160 160 160 160 Overloaded Moves . | . . . . . Propulsion Burnouts . | . . . . . Robots Hopped . | . . . . . Cave-ins Triggered . | . . . . . Exploration Rate (%) 48 | 1 95 77 60 7 Regions Visited 4 Branch Regions 3 Pre-discovered Areas 3 | . . 2 1 . Known Exits Taken 1 | . 1 . . . Unknown Exits Taken 3 | 1 . 1 1 . Scrap Searched 1 | . . 1 . . Spaces Dug 14 | . 14 . . . Terrain Destroyed 81 | . 60 . . 21 Melee . | . . . . . Projectile 7 | . 7 . . . AOE 74 | . 53 . . 21 Terrain Rammed . | . . . . . Walls Destroyed . | . . . . . Machines Disabled . | . . . . . Actions | -11 -10 -10 -10 -9 --------- Run | Jun Mat Min Exi Min Total 1444 | . 817 387 225 15 Wait 82 | . 31 51 . . Move 1217 | . 676 317 223 1 Hop . | . . . . . Pick Up 24 | . 21 2 1 . Fast Attach 2 | . 2 . . . Attach 9 | . 7 . . 2 Detach . | . . . . . Swap 19 | . 14 3 . 2 Drop 17 | . 13 3 1 . Fire 74 | . 53 11 . 10 Melee . | . . . . . Ram . | . . . . . Kick . | . . . . . Crush . | . . . . . Escape Stasis . | . . . . . Rewire . | . . . . . Trap . | . . . . . Miscellaneous . | . . . . . Route ------- -11/Junkyard -10/Materials (discovered 6 exits: [*Mat x3] / *Min x2 / [Sub]) -10/Mines (discovered 3 exits: [*Mat] / *Exi / [*Sub]) -10/Exiles -9/Mines History --------- Turn | Location | Event 1 | -11/Junkyard | Discovered new exit (range 0) 1 | -11/Junkyard | Entered Materials 208 | -10/Materials | Discovered new exit (range 9) 224 | -10/Materials | Identified exit to Mines 301 | -10/Materials | Discovered new exit (range 14) 306 | -10/Materials | Build established: Mutant 574 | -10/Materials | Discovered exit to Mines (range 12) 835 | -10/Materials | Discovered new exit (range 3) 887 | -10/Materials | Discovered new exit (range 13) 1033 | -10/Materials | Discovered new exit (range 12) 1116 | -10/Materials | Repaired Lgt. Treads 1299 | -10/Materials | Entered Mines 1304 | -10/Mines | Discovered new exit (range 12) 1349 | -10/Mines | Learned location of Zion (-7) 1400 | -10/Mines | YI-UF0 nonchalantly dropped a Grenade Launcher on the ground 1635 | -10/Mines | Discovered new exit (range 9) 1736 | -10/Mines | Escorted by a lone wolf Derelict 1756 | -10/Mines | Learned location of Storage (-7) 1881 | -10/Mines | Deemed a non-threat by the Exiles lab entrance 1881 | -10/Mines | Discovered new exit (range 5) 1887 | -10/Mines | Entered Exiles 1887 | -10/Exiles | Accompanied by 1 ally 1926 | -10/Exiles | Met 8R-AWN 1953 | -10/Exiles | Met EX-HEX 2001 | -10/Exiles | Met EX-BIN 2020 | -10/Exiles | Aligned with FarCom system 2022 | -10/Exiles | Given EX-Vault access code 2065 | -10/Exiles | Opened EX-Vault 2082 | -10/Exiles | Found Gui. Plasma Cannon 2116 | -10/Exiles | Warned to stay clear of 0b10 Research branches 2166 | -10/Exiles | Met EX-DEC 2227 | -10/Exiles | Discovered new exit (range 14) 2246 | -10/Exiles | Left Exiles lab with Gui. Plasma Cannon 2246 | -10/Exiles | Entered Mines 2247 | -9/Mines | Assembled infested the area 2261 | -9/Mines | Core integrity fell below 50% 2272 | -9/Mines | Core integrity fell below 20% 2276 | -9/Mines | Destroyed by as-66432 with Assembled Heavy Rifle Last Messages --------------- 02257_ as-23740 destroyed. 02264_ as-45336 destroyed. 02264_ as-21988 destroyed. 02264_ as-42081 destroyed. 02265_ Structural Scanner destroyed. 02266_ Grenade Launcher destroyed. 02266_ Destroyed Grenade Launcher. 02266_ as-43368 destroyed. 02267_ as-71520 destroyed. 02269_ Ion Engine destroyed. 02269_ Assault Rifle destroyed. 02271_ as-88364 destroyed. 02273_ as-89868 destroyed. 02273_ Destroyed Asb. Hover Unit. 02274_ Grenade Launcher destroyed. 02276_ as-30872 destroyed. 02276_ Grenade Launcher destroyed. 02276_ Destroyed Grenade Launcher. 02276_ Lgt. Treads destroyed. 02276_ Destroyed Lgt. Treads. Map ----- +----------------------------------------------------+ | ????????????????????????????????????????????????? | | ????????????????????????????????????????????????? | | ????????????????????????????????????????????????? | | ????????????????????????????????????????????????? | | ????????????????????????????????????????????????? | | ????????????????????????????????????????????????? | | ????????????????????????????????????????????????? | | ????????????????????????????????????????????????? | | ???????????????????????????d????????????????????? | | ????????????????????????????????????????????????? | | ????????????????????????????????????????????????? | | ????????????????????????????????????????????????? | | ????????????????????????????????????????????????? | | ????????????????????????????????????????????????? | | ?????????????? ???????????????????????????????? | | ?????????????? ??????????????????????????????? | | ????????????? ??????????????????????????????? | | ????????????? ?????????????????????????????? | | ???????????? ????????????????????????????? | | ????????????? ???????????????????????????? | | ??????????????? ??????????????????????????? | | ????????????????? ########?????????????????? | | ??????????????????? # # ## ##????????????? | | ????????????????????? ## ##????????????? | | ??????????????????????# a a ##????????????? | | ?????????????????????### @ ##????????????????? | | ????????????????????### #????????????????? | | ???????????????????### aa ?????????????? | | ???????????????????## % = aa ?????????? | | ???????????????????## ## ???????? | | ???????????????????## ######### ????????? | | ???????????????????## ######??###? #???????? | | ???????????????????## ####??????????? ##???????? | | ??????????????????? ###????????????###???????? | | ??????????????????? ?????????????????????????? | | ?????????????????? ??????????????????????????? | | ?????????????????? ??????????????????????????? | | ????????????????? ??????????????????????????? | | ?????????????????? ???????????????????????????? | | ????????????????????????????????????????????????? | | ????????????????????????????????????????????????? | | ????????????????????????????????????????????????? | | ????????????????????????????????????????????????? | | ????????????????????????????????????????????????? | | ????????????????????????????????????????????????? | | ????????????????????????????????????????????????? | | | | | | | | | +----------------------------------------------------+ Best States ------------- Heat Dissipation 25 Energy Generation 10 Energy Capacity 250 Matter Stores 300 Matter Capacity 300 Sight Range 16 Terrain Scan Density 10 Evasion (%) 55 Recoil Reduction 2 Item Schematics ----------------- None Robot Schematics ------------------ None Fabricated ------------ Nothing Alien Tech Used ----------------- None Achievements -------------- None Challenges ------------ None Game ------ Seed ChipInsulationSabre Manual? 0 Play Time 00:23:12 Cumulative 66.3 hours Start 2023.08.21 @ 06:51:41 End 2023.08.21 @ 08:42:55 Sessions 2 Manual Loads 0 Difficulty Rogue Special Mode None Game No. 49 Rogue 49 Adventurer 0 Explorer 0 Win Type - Total 1 Types 1/0/0/0/0/0/0/0/0 Lore% 38 Gallery% 33 Achievement% 36 Wizard Run 0 Options --------- ASCII 0 Keyboard 0 Movement Mouse Keybinds 0 Fullscreen 1 Font 16/SmallcapsGlow Map View 84x54 Tactical HUD 1 Map Filters NONE Filters NONE Steam 1 RUN: 3b430c57-3d50-4bdf-b35c-a91ecaae24dc